fUSD/lending_fUSD_20240726
["ID","MTS","AMOUNT","RATE_DAILY","PERIOD"]
[333244617,1721975440039,-500.0,0.00010999,2]
[333244618,1721975440049,-500.0,0.00010999,2]
[333244619,1721975440058,-500.0,0.00010999,2]
[333244620,1721975440067,-500.0,0.00010999,2]
[333244621,1721975440077,-500.0,0.00010999,2]
[333244622,1721975440086,-543.79575333,0.00010999,2]
[333244623,1721975440095,-500.0,0.00010999,2]
[333244624,1721975440104,-531.15325862,0.00010999,2]
[333244625,1721975440113,-500.0,0.00010999,2]
[333244626,1721975440122,-496.31407109,0.00010999,2]
[333244627,1721975440131,-529.07934344,0.00010999,2]
[333244628,1721975440140,-500.0,0.00010999,2]
[333244629,1721975440149,-500.0,0.00010999,2]
[333244630,1721975440160,-500.0,0.00010999,2]
[333244631,1721975440168,-500.0,0.00010999,2]
[333244632,1721975440177,-500.0,0.00010999,2]
[333244633,1721975440187,-500.0,0.00010999,2]
[333244634,1721975440196,-500.0,0.00010999,2]
[333244635,1721975440205,-500.0,0.00010999,2]
[333244636,1721975440214,-500.0,0.00010999,2]
[333244637,1721975440223,-500.0,0.00010999,2]
[333244638,1721975440233,-500.0,0.00010999,2]
[333244639,1721975440243,-222.69597253,0.00010999,2]
[333244640,1721975440252,-611.25,0.00010999,2]
[333244641,1721975440261,-500.0,0.00010999,2]
[333244642,1721975440270,-213.6,0.00010999,2]
[333244643,1721975440279,-500.0,0.00010999,2]
[333244644,1721975440288,-500.0,0.00010999,2]
[333244645,1721975440297,-500.0,0.00010999,2]
[333244646,1721975440307,-500.0,0.00010999,2]
[333244647,1721975440316,-500.0,0.00010999,2]
[333244648,1721975440325,-500.0,0.00010999,2]
[333244649,1721975440334,-649.08686762,0.00010999,2]
[333244650,1721975440343,-500.0,0.00010999,2]
[333244651,1721975440353,-183.83429672,0.00010999,2]
[333244652,1721975440362,-500.0,0.00010999,2]
[333244653,1721975440371,-500.0,0.00010999,2]
[333244654,1721975440380,-500.0,0.00010999,2]
[333244655,1721975440389,-500.0,0.00010999,2]
[333244656,1721975440398,-155.79005239,0.00010999,2]
[333244657,1721975440639,-344.20994761,0.00010999,2]
[333244658,1721975440652,-437.43436603,0.00010999,2]
[333244659,1721975440663,-913.58,0.00010999,2]
[333244660,1721975440674,-913.58,0.00010999,2]
[333244661,1721975440683,-913.58,0.00010999,2]
[333244662,1721975440696,-15.35442774,0.00010999,2]
[333244663,1721975440718,-898.22557226,0.00010999,2]
[333244664,1721975440727,-913.58,0.00010999,2]
[333244665,1721975440736,-913.58,0.00010999,2]
[333244666,1721975440746,-913.58,0.00010999,2]
[333244667,1721975440755,-913.58,0.00010999,2]
[333244668,1721975440765,-913.58,0.00010999,2]
[333244669,1721975440774,-913.58,0.00010999,2]
[333244670,1721975440784,-913.58,0.00010999,2]
[333244671,1721975440794,-913.58,0.00010999,2]
[333244672,1721975440803,-913.58,0.00010999,2]
[333244673,1721975440812,-913.58,0.00010999,2]
[333244674,1721975440822,-913.58,0.00010999,2]
[333244675,1721975440831,-913.58,0.00010999,2]
[333244676,1721975440840,-913.58,0.00010999,2]
[333244677,1721975440849,-913.58,0.00010999,2]
[333244678,1721975440858,-913.58,0.00010999,2]
[333244679,1721975440867,-913.58,0.00010999,2]
[333244680,1721975440877,-913.58,0.00010999,2]
[333244681,1721975440886,-913.58,0.00010999,2]
[333244682,1721975440895,-913.7868,0.00010999,2]
[333244683,1721975440904,-380.11376925,0.00010999,2]
[333244684,1721975440915,-500.0,0.00010999,2]
[333244685,1721975440925,-500.0,0.00010999,2]
[333244686,1721975440934,-521.88,0.00010999,2]
[333244687,1721975440943,-500.0,0.00010999,2]
[333244688,1721975440952,-500.0,0.00010999,2]
[333244689,1721975440961,-500.0,0.00010999,2]
[333244690,1721975440970,-500.0,0.00010999,2]
[333244691,1721975440979,-500.0,0.00010999,2]
[333244692,1721975440988,-500.0,0.00010999,2]
[333244693,1721975440997,-500.0,0.00010999,2]
[333244694,1721975441006,-500.0,0.00010999,2]
[333244695,1721975441015,-355.21,0.00010999,2]
[333244696,1721975441024,-500.0,0.00010999,2]
[333244697,1721975441034,-500.0,0.00010999,2]
[333244698,1721975441043,-500.0,0.00010999,2]
[333244699,1721975441052,-500.0,0.00010999,2]
[333244700,1721975441061,-483.67142439,0.00010999,2]
[333244701,1721975441071,-500.0,0.00010999,2]
[333244702,1721975441080,-500.0,0.00010999,2]
[333244703,1721975441089,-500.0,0.00010999,2]
[333244704,1721975441098,-429.1,0.00010999,2]
[333244705,1721975441107,-325.8054141,0.00010999,2]
[333244706,1721975441116,-500.0,0.00010999,2]
[333244707,1721975441125,-500.0,0.00010999,2]
[333244708,1721975441134,-500.0,0.00010999,2]
[333244709,1721975441143,-500.0,0.00010999,2]
[333244710,1721975441152,-509.94288987,0.00010999,2]
[333244711,1721975441163,-500.0,0.00010999,2]
[333244712,1721975441172,-272.14519477,0.00010999,2]
[333244713,1721975441190,-500.0,0.00010999,2]
[333244714,1721975441203,-500.0,0.00010999,2]
[333244715,1721975441212,-500.0,0.00010999,2]
[333244716,1721975441222,-500.0,0.00010999,2]
[333244717,1721975441231,-500.0,0.00010999,2]
[333244718,1721975441240,-500.0,0.00010999,2]
[333244719,1721975441250,-500.0,0.00010999,2]
[333244720,1721975441259,-500.0,0.00010999,2]
[333244721,1721975441269,-500.0,0.00010999,2]
[333244722,1721975441278,-500.0,0.00010999,2]
[333244723,1721975441287,-500.0,0.00010999,2]
[333244724,1721975441297,-500.0,0.00010999,2]
[333244725,1721975441306,-500.0,0.00010999,2]
[333244726,1721975441316,-500.0,0.00010999,2]
[333244727,1721975441326,-507.62964556,0.00010999,2]
[333244728,1721975441335,-500.0,0.00010999,2]
[333244729,1721975441345,-500.0,0.00010999,2]
[333244730,1721975441355,-500.0,0.00010999,2]
[333244731,1721975441365,-508.18533963,0.00010999,2]
[333244732,1721975441375,-519.59,0.00010999,2]
[333244733,1721975441385,-500.0,0.00010999,2]
[333244734,1721975441394,-500.0,0.00010999,2]
[333244735,1721975441405,-588.76896847,0.00010999,2]
[333244736,1721975441416,-500.0,0.00010999,2]
[333244737,1721975441426,-3000.0,0.00010999,2]
[333244738,1721975441436,-500.0,0.00010999,2]
[333244739,1721975441446,-298.67563332,0.00010999,2]
[333244740,1721975441456,-500.0,0.00010999,2]
[333244741,1721975441466,-500.0,0.00010999,2]
[333244742,1721975441476,-500.0,0.00010999,2]
[333244743,1721975441486,-500.0,0.00010999,2]
[333244744,1721975441495,-500.80855173,0.00010999,2]
[333244745,1721975441505,-152.5101349,0.00010999,2]
[333244746,1721975441515,-10866.60016185,0.00010999,2]
[333244747,1721975441525,-150.0,0.00010999,2]
[333244748,1721975441535,-150.0,0.00010999,2]
[333244749,1721975441545,-3308.751,0.00011,2]
[333244750,1721975441554,-150.268,0.00011,2]
[333244751,1721975441564,-2001.201,0.00011,2]
[333244752,1721975441574,-505.893,0.00011,2]
[333244753,1721975441584,-905.381,0.00011,2]
[333244755,1721975441598,-2401.369,0.00011,2]
[333244757,1721975441608,-556.722,0.00011,2]
[333244759,1721975441618,-153.002,0.00011,2]
[333244761,1721975441628,-28466.71789178,0.00011,2]
[333244763,1721975441642,-86004.74623541,0.00011,2]
[333244765,1721975441652,-1852.05948225,0.00011,2]
[333244767,1721975441663,-84562.8705514,0.00011,2]
[333244769,1721975441677,-17950.96915941,0.00011,2]
[333244771,1721975441688,-308372.02190503,0.00011,2]
[333244774,1721975441700,-650.0,0.00011,2]
[333244776,1721975441713,-2025.26791969,0.00011,2]
[333244779,1721975441737,-498.62710039,0.00011,2]
[333244791,1721975441852,-598.6497946,0.00011,2]
[333244793,1721975441865,-284.91547973,0.00011,2]
[333244795,1721975441878,-730.55933782,0.00011,2]
[333244798,1721975441891,-884.36799835,0.00011,2]
[333244931,1721975442938,-4769.26480063,0.00011,2]
[333244935,1721975442950,-56128.64415127,0.00011,2]
[333244938,1721975442962,-763.71416965,0.00011,2]
[333244940,1721975442973,-2279.0,0.00011,2]
[333244945,1721975442990,-2925.0,0.00011,2]
[333244950,1721975443006,-1301.76155388,0.00011,2]
[333244953,1721975443018,-732.13709618,0.00011,2]
[333244956,1721975443030,-168605.45304,0.00011,2]
[333244959,1721975443042,-2759.5004898,0.00011,2]
[333244962,1721975443053,-1888.0000005,0.00011,2]
[333244967,1721975443064,-419.88707268,0.00011,2]
[333244984,1721975443151,-500.0,0.00011,2]
[333244988,1721975443163,-5864.05419378,0.00011,2]
[333244992,1721975443174,-500.0,0.00011,2]
[333244995,1721975443186,-1050.37769032,0.00011,2]
[333244998,1721975443197,-1881.76573124,0.00011,2]
[333245001,1721975443208,-3345.55,0.00011,2]
[333245010,1721975443290,-337.27249606,0.00011,2]
[333245013,1721975443302,-537.16417105,0.00011,2]
[333245016,1721975443328,-1728.91551635,0.00011,2]
[333245361,1721975446955,-305.0,0.00011,2]
[333245366,1721975446989,-768.0,0.00011,2]
[333245368,1721975447002,-26977.16239601,0.00011,2]
[333245372,1721975447029,-10000.0,0.00010449,2]
[333245374,1721975447040,-36762.20750543,0.00011,2]
[333245377,1721975447052,-451.23409272,0.00011,2]
[333245380,1721975447071,-421.55604868,0.00011,2]
[333245382,1721975447084,-592.714,0.00011,2]
[333245384,1721975447097,-27493.91517875,0.00011,2]
[333245387,1721975447115,-18687.90820847,0.00011,2]
[333245389,1721975447127,-3823.05,0.00011,2]
[333245392,1721975447140,-519.94092033,0.00011,2]
[333245394,1721975447153,-4776.45311596,0.00011,2]
[333245397,1721975447169,-9409.88840403,0.00011,2]
[333245399,1721975447182,-1405.51915643,0.00011,2]
[333245401,1721975447194,-929.49487417,0.00011,2]
[333245404,1721975447207,-585.22668101,0.00011,2]
[333245406,1721975447220,-1346.51356479,0.00011,2]
[333245451,1721975447678,-29000.0,0.00011,2]
[333245454,1721975447694,-3075.0,0.00011,2]
[333245457,1721975447709,-852.18109769,0.00011,2]
[333245459,1721975447723,-584.82021014,0.00011,2]
[333245461,1721975447737,-442.00189353,0.00011,2]
[333245464,1721975447750,-32530.00000015,0.00011,2]
[333245466,1721975447762,-8994.221202,0.00011,2]
[333245468,1721975447775,-456.95008335,0.00011,2]
[333245471,1721975447797,-951.33438215,0.00011,2]
[333245474,1721975447812,-1019.50204407,0.00011,2]
[333245476,1721975447826,-310.0765343,0.00011,2]
[333245479,1721975447840,-1647.40367444,0.00011,2]
[333245481,1721975447855,-492.53686555,0.00011,2]
[333245483,1721975447868,-562.5,0.00011,2]
[333245486,1721975447883,-3806.86725448,0.00011,2]
[333245488,1721975447912,-2251.39048209,0.00011,2]
[333245491,1721975447997,-400.57,0.00011,2]
[333245493,1721975448181,-57189.2192255,0.00011,2]
[333245592,1721975748665,3000.0,0.0002,120]
[333245593,1721975845906,16300.0,0.0002,120]
[333245595,1721975893274,2025.54,0.0001337,30]
[333245596,1721975959710,3.27593808,0.0002,120]
[333245598,1721976006977,20000.0,0.00018,90]
[333245599,1721976033479,1000.0,0.00016299,120]
[333245601,1721976485228,1856.74,0.0001337,30]
[333245605,1721976632152,-192.07,8.021e-05,2]
[333245606,1721976632162,-1023.1925846,8.219e-05,2]
[333245607,1721976632172,-957.04,8.219e-05,2]
[333245608,1721976632182,-1023.19258459,8.917e-05,2]
[333245609,1721976632191,-167.77158081,9.568e-05,2]
[333245610,1721976632206,-120.17841919,9.568e-05,2]
[333245611,1721976632216,-267.64,9.614e-05,2]
[333245612,1721976632225,-320.26674362,9.705e-05,2]
[333245613,1721976632237,-1427.71325638,9.705e-05,2]
[333245614,1721976632248,-164.34,9.808e-05,2]
[333245615,1721976632259,-164.34,9.832e-05,2]
[333245616,1721976632268,-164.34,9.857e-05,2]
[333245617,1721976632278,-1058.72,9.919e-05,2]
[333245618,1721976632287,-99.10606407,9.981e-05,2]
[333245619,1721976632299,-200.89393593,9.981e-05,2]
[333245620,1721976632309,-659.34004407,9.982e-05,2]
[333245621,1721976632321,-9340.65995593,9.982e-05,2]
[333245622,1721976632330,-797.34,0.00010017,2]
[333245623,1721976632340,-3583.0331,0.00010055,2]
[333245624,1721976632349,-23900.0,0.00010102,2]
[333245625,1721976632360,-360.0,0.00010231,2]
[333245626,1721976632370,-250.0,0.00010241,2]
[333245627,1721976632380,-10000.0,0.0001045,2]
[333245628,1721976632390,-957.04,0.0001047,2]
[333245629,1721976632399,-150.0,0.00010548,2]
[333245630,1721976632409,-299.99,0.00010568,2]
[333245631,1721976632418,-162.34,0.00010668,2]
[333245632,1721976632427,-499.99,0.00010668,2]
[333245633,1721976632437,-499.99,0.00010668,2]
[333245634,1721976632449,-194.3073099,0.0001078,2]
[333245635,1721976632459,-199.2846,0.000108,2]
[333245636,1721976632469,-254.7876,0.000108,2]
[333245637,1721976632479,-593.4094,0.000108,2]
[333245638,1721976632488,-343.7444,0.00010899,2]
[333245640,1721976632498,-1810.56468368,0.000109,2]
[333245642,1721976632509,-750.93154305,0.000109,2]
[333245644,1721976632520,-1109.34677327,0.000109,2]
[333245645,1721976632530,-454.8503,0.000109,2]
[333245646,1721976632540,-8703.04936057,0.000109,2]
[333245647,1721976632551,-401.44091038,0.000109,2]
[333245648,1721976632565,-175844.68637384,0.000109,2]
[333245649,1721976632580,-8913.63707617,0.000109,2]
[333245650,1721976632589,-182.02421399,0.000109,2]
[333245651,1721976632599,-681.4754542,0.000109,2]
[333245652,1721976632609,-155.78231622,0.000109,2]
[333245653,1721976632618,-155.78231606,0.000109,2]
[333245654,1721976632627,-155.78231606,0.000109,2]
[333245655,1721976632636,-155.78231606,0.000109,2]
[333245656,1721976632645,-155.78231606,0.000109,2]
[333245657,1721976632655,-155.78231606,0.000109,2]
[333245658,1721976632664,-155.78231606,0.000109,2]
[333245659,1721976632673,-155.78231606,0.000109,2]
[333245660,1721976632682,-155.78231606,0.000109,2]
[333245661,1721976632692,-155.78231606,0.000109,2]
[333245662,1721976632701,-155.78231606,0.000109,2]
[333245663,1721976632711,-155.78231606,0.000109,2]
[333245664,1721976632720,-155.78231606,0.000109,2]
[333245665,1721976632730,-155.78231606,0.000109,2]
[333245666,1721976632740,-155.78231606,0.000109,2]
[333245667,1721976632749,-500.0,0.00010912,2]
[333245668,1721976632759,-200.0,0.00010959,2]
[333245669,1721976632768,-250.0,0.00010959,2]
[333245670,1721976632778,-420.0,0.00010979,2]
[333245671,1721976632787,-278.67576328,0.00010997,2]
[333245672,1721976632797,-389.36860714,0.00010999,2]
[333245673,1721976632807,-500.0,0.00010999,2]
[333245674,1721976632816,-500.0,0.00010999,2]
[333245675,1721976632825,-500.0,0.00010999,2]
[333245676,1721976632835,-217.24,0.00010999,2]
[333245677,1721976632845,-500.0,0.00010999,2]
[333245678,1721976632854,-500.0,0.00010999,2]
[333245679,1721976632865,-500.0,0.00010999,2]
[333245680,1721976632875,-500.0,0.00010999,2]
[333245681,1721976632884,-612.17,0.00010999,2]
[333245682,1721976632894,-500.0,0.00010999,2]
[333245683,1721976632903,-500.0,0.00010999,2]
[333245684,1721976632912,-500.0,0.00010999,2]
[333245685,1721976632922,-500.0,0.00010999,2]
[333245686,1721976632931,-645.77,0.00010999,2]
[333245687,1721976632941,-514.37,0.00010999,2]
[333245688,1721976632950,-500.0,0.00010999,2]
[333245689,1721976632960,-500.0,0.00010999,2]
[333245690,1721976632979,-500.0,0.00010999,2]
[333245691,1721976632989,-500.0,0.00010999,2]
[333245692,1721976632999,-482.09,0.00010999,2]
[333245693,1721976633008,-500.0,0.00010999,2]
[333245694,1721976633018,-231.86806522,0.00010999,2]
[333245695,1721976633027,-500.0,0.00010999,2]
[333245696,1721976633037,-199.63121342,0.00010999,2]
[333245697,1721976633046,-500.0,0.00010999,2]
[333245698,1721976633057,-500.0,0.00010999,2]
[333245699,1721976633067,-500.0,0.00010999,2]
[333245700,1721976633077,-500.0,0.00010999,2]
[333245701,1721976633086,-500.0,0.00010999,2]
[333245702,1721976633096,-500.0,0.00010999,2]
[333245703,1721976633105,-500.0,0.00010999,2]
[333245704,1721976633116,-500.0,0.00010999,2]
[333245705,1721976633126,-500.0,0.00010999,2]
[333245706,1721976633137,-500.0,0.00010999,2]
[333245707,1721976633146,-500.0,0.00010999,2]
[333245708,1721976633156,-500.0,0.00010999,2]
[333245709,1721976633166,-500.0,0.00010999,2]
[333245710,1721976633176,-500.0,0.00010999,2]
[333245711,1721976633186,-500.0,0.00010999,2]
[333245712,1721976633195,-500.0,0.00010999,2]
[333245713,1721976633205,-500.0,0.00010999,2]
[333245714,1721976633215,-500.0,0.00010999,2]
[333245715,1721976633225,-500.0,0.00010999,2]
[333245716,1721976633234,-274.94617986,0.00010999,2]
[333245717,1721976633244,-500.0,0.00010999,2]
[333245718,1721976633254,-500.0,0.00010999,2]
[333245719,1721976633264,-500.0,0.00010999,2]
[333245720,1721976633275,-500.0,0.00010999,2]
[333245721,1721976633285,-413.74,0.00010999,2]
[333245722,1721976633294,-500.0,0.00010999,2]
[333245723,1721976633304,-500.0,0.00010999,2]
[333245724,1721976633313,-500.0,0.00010999,2]
[333245725,1721976633323,-480.64310939,0.00010999,2]
[333245726,1721976633333,-500.0,0.00010999,2]
[333245727,1721976633342,-425.56,0.00010999,2]
[333245728,1721976633351,-500.0,0.00010999,2]
[333245729,1721976633363,-500.0,0.00010999,2]
[333245730,1721976633372,-160.65505391,0.00010999,2]
[333245731,1721976633382,-500.0,0.00010999,2]
[333245732,1721976633392,-358.28,0.00010999,2]
[333245733,1721976633402,-590.47,0.00010999,2]
[333245734,1721976633412,-500.0,0.00010999,2]
[333245735,1721976633422,-500.0,0.00010999,2]
[333245736,1721976633432,-500.0,0.00010999,2]
[333245737,1721976633442,-415.74,0.00010999,2]
[333245738,1721976633452,-560.80304365,0.00010999,2]
[333245739,1721976633462,-500.0,0.00010999,2]
[333245740,1721976633471,-500.0,0.00010999,2]
[333245741,1721976633480,-500.0,0.00010999,2]
[333245742,1721976633490,-500.0,0.00010999,2]
[333245743,1721976633499,-470.82,0.00010999,2]
[333245744,1721976633508,-500.0,0.00010999,2]
[333245745,1721976633518,-516.82706847,0.00010999,2]
[333245746,1721976633528,-500.0,0.00010999,2]
[333245747,1721976633538,-298.16,0.00010999,2]
[333245748,1721976633547,-638.99826485,0.00010999,2]
[333245749,1721976633557,-597.00037389,0.00010999,2]
[333245750,1721976633567,-500.0,0.00010999,2]
[333245751,1721976633576,-500.0,0.00010999,2]
[333245752,1721976633586,-159.14187874,0.00010999,2]
[333245753,1721976633597,-500.0,0.00010999,2]
[333245754,1721976633606,-248.13155199,0.00010999,2]
[333245755,1721976633616,-500.0,0.00010999,2]
[333245756,1721976633627,-231.11,0.00010999,2]
[333245757,1721976633637,-500.0,0.00010999,2]
[333245758,1721976633647,-28586.21921077,0.00011,2]
[333245759,1721976633660,-1336.23099749,0.00011,2]
[333245760,1721976638060,-1023.19258459,9.614e-05,2]
[333245761,1721976638070,-292.75436936,0.0001045,2]
[333245764,1721976638149,-1607.6162259,0.0001045,2]
[333245765,1721976638158,-155.78231606,0.000109,2]
[333245766,1721976638168,-500.0,0.00010999,2]
[333245767,1721976638177,-150.34205122,0.00010999,2]
[333245768,1721976638186,-500.0,0.00010999,2]
[333245769,1721976638195,-500.0,0.00010999,2]
[333245770,1721976638205,-539.79684333,0.00011,2]
[333245771,1721976638915,-701.89106013,0.000108,2]
[333245772,1721976638927,-720.62291816,0.000108,2]
[333245773,1721976638940,-2400.0,0.000108,2]
[333245774,1721976639018,-1241.66815981,0.000108,2]
[333245775,1721976639030,-290.95999964,0.000108,2]
[333245776,1721976639042,-726.22550044,0.000108,2]
[333245777,1721976639053,-689.05821815,0.000108,2]
[333245778,1721976639121,-3209.94494954,0.000108,2]
[333245780,1721976639133,-5197.57096875,0.000108,2]
[333245783,1721976639145,-4583.2606,0.000108,2]
[333245900,1721976640416,-328.47396994,0.000108,2]
[333245902,1721976640428,-432.28795544,0.000108,2]
[333245904,1721976640437,-152.89544456,0.000109,2]
[333245906,1721976640450,-2.8868715,0.000109,2]
[333245908,1721976640459,-500.0,0.00010999,2]
[333245910,1721976640469,-557.97813397,0.00011,2]
[333245912,1721976640480,-5223.50392506,0.00011,2]
[333245915,1721976640492,-673.67079095,0.00011,2]
[333245917,1721976640503,-76409.34958434,0.00011,2]
[333245919,1721976640512,-10680.56,0.00011,2]
[333245921,1721976640522,-4790766.83341885,0.00011,2]
[333245923,1721976640531,-751.20505964,0.00011,2]
[333245925,1721976640540,-193633.2610451,0.00011,2]
[333245927,1721976640550,-608754.438401,0.00011,2]
[333245929,1721976640560,-710753.92673051,0.00011,2]
[333245931,1721976640569,-426516.68547465,0.00011,2]
[333245933,1721976640578,-3925039.89425342,0.00011,2]
[333245935,1721976640587,-1388381.51977563,0.00011,2]
[333245936,1721976640596,-489752.16338526,0.00011,2]
[333245938,1721976640606,-807855.3625815,0.00011,2]
[333245941,1721976640624,-588.950825,0.00011,2]
[333246249,1721976643894,-546.70500003,0.00011,2]
[333246260,1721976644015,-946385.3606048,0.00011,2]
[333246262,1721976644027,-2415.26216506,0.00011,2]
[333246581,1721976647341,-500.0,0.00010999,2]
[333246583,1721976647351,-500.0,0.00010999,2]
[333246585,1721976647360,-339890.18643375,0.00011,2]
[333246616,1721976647670,-386.34527195,0.00011,2]
[333246618,1721976647682,-4004.67309286,0.00011,2]
[333248081,1721977085610,1702.01,0.0001337,30]
[333248086,1721977765009,1560.17,0.0001337,30]
[333248102,1721977832389,-855.0,8.218e-05,2]
[333248103,1721977832399,-84.51462412,8.218e-05,2]
[333248104,1721977832410,-640.33202254,8.218e-05,2]
[333248105,1721977832578,-125.00338512,8.218e-05,2]
[333248106,1721977832587,-160.5,8.219e-05,2]
[333248107,1721977832598,-871.33,8.219e-05,2]
[333248108,1721977832608,-250.0,9.528e-05,2]
[333248109,1721977832617,-244.19,9.548e-05,2]
[333248110,1721977832627,-348.97661488,9.556e-05,2]
[333248111,1721977832752,-806.77598637,9.556e-05,2]
[333248112,1721977832903,-2114.71810621,9.556e-05,2]
[333248113,1721977832914,-250.0,9.556e-05,2]
[333248114,1721977832927,-562.4996314,9.556e-05,2]
[333248115,1721977832939,-1816.95807424,9.556e-05,2]
[333248116,1721977832950,-6721.83068,9.556e-05,2]
[333248117,1721977838397,-11278.2409069,9.556e-05,2]
[333248118,1721977838407,-1000.0,9.592e-05,2]
[333248119,1721977838417,-170.89,9.636e-05,2]
[333248120,1721977838426,-16914.43,9.713e-05,2]
[333248121,1721977838437,-255.86,9.757e-05,2]
[333248122,1721977838447,-1852.42,9.813e-05,2]
[333248123,1721977838457,-153.57996655,9.888e-05,2]
[333248124,1721977838467,-300.0,9.9e-05,3]
[333248125,1721977838476,-700.0,0.0001,3]
[333248126,1721977838486,-23440.78630092,0.0001009,2]
[333248127,1721977838495,-1100.0,0.000101,3]
[333248128,1721977838505,-285.58,0.00010125,2]
[333248129,1721977838514,-150.99,0.00010125,2]
[333248130,1721977838523,-1400.0,0.000102,3]
[333248131,1721977838533,-329.0,0.0001022,2]
[333248132,1721977838542,-499.99,0.0001022,2]
[333248133,1721977838551,-200.0,0.00010283,2]
[333248134,1721977838560,-150.0,0.00010299,2]
[333248135,1721977838570,-1800.0,0.000103,3]
[333248136,1721977838580,-6521.3952,0.00010333,2]
[333248137,1721977838589,-300.0,0.000104,3]
[333248138,1721977838601,-426.26005495,0.0001045,2]
[333248139,1721977838611,-871.33,0.00010466,2]
[333248140,1721977838621,-300.0,0.000105,3]
[333248141,1721977838630,-300.0,0.000106,3]
[333248142,1721977838639,-300.0,0.000107,3]
[333248143,1721977838649,-799.08471937,0.0001074,2]
[333248144,1721977838658,-194.2726937,0.0001078,2]
[333248145,1721977838668,-1000.0,0.00010791,2]
[333248146,1721977838677,-900.0,0.000108,3]
[333248147,1721977838687,-329.0,0.0001084,2]
[333248148,1721977838696,-899.68727945,0.0001089,2]
[333248149,1721977838724,-1985.75496883,0.0001089,2]
[333248150,1721977838739,-374.94082365,0.0001089,2]
[333248151,1721977838775,-541.830076,0.0001089,2]
[333248152,1721977839058,-3371.18811094,0.0001089,2]
[333248153,1721977839071,-14968.59874113,0.0001089,2]
[333248154,1721977839081,-150.48675,0.0001089,2]
[333248155,1721977839091,-163.48843547,0.00010899,2]
[333248156,1721977839102,-163.48843547,0.00010899,2]
[333248157,1721977839111,-13001.31932645,0.000109,2]
[333248158,1721977839123,-5179.78453988,0.000109,2]
[333248162,1721977840446,-4547.08758781,0.000109,2]
[333248163,1721977840458,-3604.54927796,0.000109,2]
[333248164,1721977840518,-3725.9168679,0.000109,2]
[333248165,1721977840528,-2477.4882,0.000109,2]
[333248166,1721977840539,-570.0949321,0.000109,2]
[333248167,1721977840550,-1673.09677541,0.000109,2]
[333248168,1721977840563,-256.80829249,0.000109,2]
[333248169,1721977840804,-156.4355,0.000109,2]
[333248170,1721977840814,-252.86577861,0.000109,2]
[333248171,1721977840833,-495.55389865,0.000109,2]
[333248172,1721977840844,-583.2607277,0.000109,2]
[333248173,1721977840856,-6584.77830081,0.000109,2]
[333248174,1721977840876,-3263.54129423,0.000109,2]
[333248175,1721977840886,-10000.0,0.000109,2]
[333248176,1721977840895,-1000.0,0.000109,2]
[333248177,1721977840904,-832.62816945,0.000109,2]
[333248178,1721977840914,-832.62816944,0.000109,2]
[333248179,1721977840923,-313.4568,0.000109,2]
[333248180,1721977840932,-163.48843547,0.000109,2]
[333248181,1721977840942,-500.0,0.00010912,2]
[333248182,1721977840951,-200.0,0.00010959,2]
[333248183,1721977840961,-250.0,0.00010959,2]
[333248184,1721977840971,-223.82,0.00010959,2]
[333248185,1721977840980,-1122.02426798,0.00010997,2]
[333248186,1721977840989,-500.0,0.00010998,2]